[Event "Early-Titled-Tuesday-Blitz-February-13-2024"]
[Site "Chess.com"]
[Date "2024.02.13"]
[Round "3"]
[White "DonkyDonkyDonkey"]
[Black "soloderisas"]
[Result "1-0"]
[WhiteElo "2940"]
[BlackElo "2537"]
[TimeControl "180+1"]
[EndTime "8:30:17 PST"]
[Termination "DonkyDonkyDonkey won by checkmate"]

1. d4 {[%clk 0:03:00.9]} 1... d5 {[%clk 0:02:57.2]} 2. Nc3 {[%clk 0:03:01.4]}
2... c6 {[%clk 0:02:53.3]} 3. Bf4 {[%clk 0:03:00.9]} 3... Bf5 {[%clk 0:02:51.4]}
4. e3 {[%clk 0:03:01.1]} 4... e6 {[%clk 0:02:50.8]} 5. Bd3 {[%clk 0:03:01.8]}
5... Bd6 {[%clk 0:02:49.6]} 6. Bxd6 {[%clk 0:02:54.6]} 6... Qxd6 {[%clk
0:02:49.2]} 7. Nf3 {[%clk 0:02:55.3]} 7... Nd7 {[%clk 0:02:48.4]} 8. O-O {[%clk
0:02:54.8]} 8... Ngf6 {[%clk 0:02:47.9]} 9. Re1 {[%clk 0:02:54.8]} 9... Ne4
{[%clk 0:02:46.4]} 10. Bxe4 {[%clk 0:02:54.8]} 10... dxe4 {[%clk 0:02:45.6]} 11.
Nd2 {[%clk 0:02:55.3]} 11... Nf6 {[%clk 0:02:44.5]} 12. h3 {[%clk 0:02:54.6]}
12... h5 {[%clk 0:02:42.4]} 13. f3 {[%clk 0:02:54.5]} 13... exf3 {[%clk
0:02:35.4]} 14. Qxf3 {[%clk 0:02:55.4]} 14... g5 {[%clk 0:02:11.1]} 15. Qf2
{[%clk 0:02:52.1]} 15... Ng4 {[%clk 0:01:16.3]} 16. hxg4 {[%clk 0:02:41.3]}
16... hxg4 {[%clk 0:01:16.2]} 17. Nf1 {[%clk 0:02:40.3]} 17... O-O-O {[%clk
0:01:09.3]} 18. Qg3 {[%clk 0:02:40.4]} 18... Qb4 {[%clk 0:00:53.5]} 19. e4
{[%clk 0:02:36.9]} 19... Qxd4+ {[%clk 0:00:50.3]} 20. Qe3 {[%clk 0:02:37]} 20...
Bg6 {[%clk 0:00:38.1]} 21. Qxd4 {[%clk 0:02:37.2]} 21... Rxd4 {[%clk 0:00:38.5]}
22. Rad1 {[%clk 0:02:38.1]} 22... c5 {[%clk 0:00:32.5]} 23. Rxd4 {[%clk
0:02:37.2]} 23... cxd4 {[%clk 0:00:32.6]} 24. Nb5 {[%clk 0:02:36.9]} 24... Rd8
{[%clk 0:00:25.5]} 25. Rd1 {[%clk 0:02:34.3]} 25... e5 {[%clk 0:00:22.3]} 26. c3
{[%clk 0:02:34.8]} 26... a6 {[%clk 0:00:20.4]} 27. Na3 {[%clk 0:02:34.4]} 27...
dxc3 {[%clk 0:00:19.8]} 28. Rxd8+ {[%clk 0:02:34]} 28... Kxd8 {[%clk 0:00:20.7]}
29. bxc3 {[%clk 0:02:34.9]} 29... Bxe4 {[%clk 0:00:21.1]} 30. Nc4 {[%clk
0:02:34.8]} 30... f6 {[%clk 0:00:21]} 31. a3 {[%clk 0:02:34.9]} 31... Kd7 {[%clk
0:00:18.4]} 32. Nfe3 {[%clk 0:02:35.3]} 32... Ke6 {[%clk 0:00:17.7]} 33. Nxg4
{[%clk 0:02:34.8]} 33... Bd3 {[%clk 0:00:14.6]} 34. Nd2 {[%clk 0:02:32.8]} 34...
f5 {[%clk 0:00:14.6]} 35. Nf2 {[%clk 0:02:33.2]} 35... Bc2 {[%clk 0:00:14]} 36.
Kf1 {[%clk 0:02:32.5]} 36... e4 {[%clk 0:00:14.2]} 37. Ke2 {[%clk 0:02:33.2]}
37... Ke5 {[%clk 0:00:14.5]} 38. Nc4+ {[%clk 0:02:32.5]} 38... Ke6 {[%clk
0:00:14.5]} 39. Kd2 {[%clk 0:02:31.7]} 39... Ba4 {[%clk 0:00:13.9]} 40. Na5
{[%clk 0:02:32.4]} 40... b6 {[%clk 0:00:12.1]} 41. Nc4 {[%clk 0:02:32.8]} 41...
b5 {[%clk 0:00:09.2]} 42. Na5 {[%clk 0:02:31.9]} 42... Ke5 {[%clk 0:00:08.5]}
43. Nc6+ {[%clk 0:02:28]} 43... Kf4 {[%clk 0:00:08.7]} 44. Ke1 {[%clk
0:02:20.5]} 44... Ke3 {[%clk 0:00:07.2]} 45. Nd4 {[%clk 0:02:19.8]} 45... f4
{[%clk 0:00:06.2]} 46. Nf5# {[%clk 0:02:20.2]} 1-0

[Event "Early-Titled-Tuesday-Blitz-February-13-2024"]
[Site "Chess.com"]
[Date "2024.02.13"]
[Round "3"]
[White "betta2004"]
[Black "K_A_S_T_O_R"]
[Result "1-0"]
[WhiteElo "2620"]
[BlackElo "2863"]
[TimeControl "180+1"]
[EndTime "8:30:27 PST"]
[Termination "betta2004 won by resignation"]

1. e4 {[%clk 0:03:00.9]} 1... c5 {[%clk 0:02:59.9]} 2. Nc3 {[%clk 0:03:00.1]}
2... e6 {[%clk 0:02:59.1]} 3. Nge2 {[%clk 0:02:52.6]} 3... a6 {[%clk 0:02:56.4]}
4. g3 {[%clk 0:02:52.8]} 4... Nc6 {[%clk 0:02:37.4]} 5. Bg2 {[%clk 0:02:51.9]}
5... Nf6 {[%clk 0:02:37.3]} 6. O-O {[%clk 0:02:50.8]} 6... d6 {[%clk 0:02:37.1]}
7. Re1 {[%clk 0:02:48.3]} 7... Be7 {[%clk 0:02:36.4]} 8. d4 {[%clk 0:02:48.5]}
8... cxd4 {[%clk 0:02:36.4]} 9. Nxd4 {[%clk 0:02:49.4]} 9... Bd7 {[%clk
0:02:36.9]} 10. Be3 {[%clk 0:02:39.5]} 10... O-O {[%clk 0:02:31.4]} 11. Qe2
{[%clk 0:02:36.8]} 11... Qc7 {[%clk 0:02:29.1]} 12. Rad1 {[%clk 0:02:30.4]}
12... b5 {[%clk 0:02:25.9]} 13. f4 {[%clk 0:02:26]} 13... Rab8 {[%clk
0:02:14.7]} 14. g4 {[%clk 0:02:11.8]} 14... Nxd4 {[%clk 0:02:13.7]} 15. Bxd4
{[%clk 0:02:10.8]} 15... b4 {[%clk 0:02:11.9]} 16. Nb1 {[%clk 0:02:10]} 16... e5
{[%clk 0:02:08]} 17. g5 {[%clk 0:01:59.8]} 17... exd4 {[%clk 0:01:59.3]} 18.
gxf6 {[%clk 0:01:49.1]} 18... Bxf6 {[%clk 0:01:59.8]} 19. e5 {[%clk 0:01:48.5]}
19... dxe5 {[%clk 0:01:56.8]} 20. fxe5 {[%clk 0:01:49.4]} 20... Rfe8 {[%clk
0:01:56.9]} 21. Rxd4 {[%clk 0:01:44.4]} 21... Rxe5 {[%clk 0:01:39.3]} 22. Re4
{[%clk 0:01:38.2]} 22... Qb6+ {[%clk 0:01:37.6]} 23. Kh1 {[%clk 0:01:33.1]}
23... Rbe8 {[%clk 0:01:33.3]} 24. Nd2 {[%clk 0:01:32.3]} 24... Rxe4 {[%clk
0:01:24.5]} 25. Nxe4 {[%clk 0:01:31.5]} 25... Bxb2 {[%clk 0:01:20.7]} 26. Bf3
{[%clk 0:01:25]} 26... f5 {[%clk 0:01:13.9]} 27. Qc4+ {[%clk 0:01:23.5]} 27...
Be6 {[%clk 0:01:14.1]} 28. Ng5 {[%clk 0:01:21.8]} 28... Rc8 {[%clk 0:00:30.9]}
29. Rxe6 {[%clk 0:01:18.3]} 1-0

[Event "Early-Titled-Tuesday-Blitz-February-13-2024"]
[Site "Chess.com"]
[Date "2024.02.13"]
[Round "3"]
[White "C_K_G"]
[Black "Macron20hTF1"]
[Result "0-1"]
[WhiteElo "2126"]
[BlackElo "2551"]
[TimeControl "180+1"]
[EndTime "8:30:29 PST"]
[Termination "Macron20hTF1 won by resignation"]

1. e4 {[%clk 0:03:00.9]} 1... e6 {[%clk 0:02:59.7]} 2. Nf3 {[%clk 0:03:00.4]}
2... b6 {[%clk 0:02:59.9]} 3. Nc3 {[%clk 0:03:00.7]} 3... Bb7 {[%clk 0:03:00.5]}
4. d4 {[%clk 0:03:01.1]} 4... Bb4 {[%clk 0:03:00]} 5. Bd3 {[%clk 0:03:01.1]}
5... Nf6 {[%clk 0:03:00]} 6. Bg5 {[%clk 0:03:00.8]} 6... h6 {[%clk 0:03:00]} 7.
Bxf6 {[%clk 0:03:00.8]} 7... Qxf6 {[%clk 0:03:00.9]} 8. O-O {[%clk 0:02:56.7]}
8... Bxc3 {[%clk 0:03:01.3]} 9. bxc3 {[%clk 0:02:55.9]} 9... O-O {[%clk
0:03:01.8]} 10. Re1 {[%clk 0:02:53]} 10... d6 {[%clk 0:03:02.2]} 11. Qe2 {[%clk
0:02:51.8]} 11... Nd7 {[%clk 0:03:02.6]} 12. c4 {[%clk 0:02:32.8]} 12... e5
{[%clk 0:03:01]} 13. c3 {[%clk 0:02:32.3]} 13... Rfe8 {[%clk 0:02:57.8]} 14. g3
{[%clk 0:02:07.7]} 14... Nb8 {[%clk 0:02:54.6]} 15. Qe3 {[%clk 0:02:00.1]} 15...
Nc6 {[%clk 0:02:53.9]} 16. d5 {[%clk 0:01:57.3]} 16... Na5 {[%clk 0:02:53.7]}
17. Nh4 {[%clk 0:01:57]} 17... Ba6 {[%clk 0:02:50.5]} 18. Qe2 {[%clk 0:01:55.8]}
18... g6 {[%clk 0:02:42.5]} 19. Qf1 {[%clk 0:01:54.3]} 19... Nb7 {[%clk
0:02:40.3]} 20. Re3 {[%clk 0:01:53.2]} 20... Nc5 {[%clk 0:02:39.8]} 21. Bc2
{[%clk 0:01:53.3]} 21... Kg7 {[%clk 0:02:36.6]} 22. Rf3 {[%clk 0:01:52.7]} 22...
Qg5 {[%clk 0:02:35.1]} 23. Qe2 {[%clk 0:01:41.2]} 23... Bc8 {[%clk 0:02:30.4]}
24. Nf5+ {[%clk 0:01:04.1]} 24... gxf5 {[%clk 0:02:26.3]} 25. exf5 {[%clk
0:00:59.1]} 25... e4 {[%clk 0:02:19.9]} 26. f6+ {[%clk 0:00:58.7]} 26... Kh8
{[%clk 0:02:19.9]} 27. Rf4 {[%clk 0:00:58.9]} 27... Bf5 {[%clk 0:02:14.5]} 28.
Re1 {[%clk 0:00:53.2]} 28... Nd3 {[%clk 0:02:06.2]} 29. Bxd3 {[%clk 0:00:47.9]}
29... exd3 {[%clk 0:02:06.4]} 30. Qxe8+ {[%clk 0:00:47.4]} 30... Rxe8 {[%clk
0:02:07.3]} 31. Rxe8+ {[%clk 0:00:47.5]} 31... Kh7 {[%clk 0:02:08.1]} 32. Re1
{[%clk 0:00:30.3]} 32... Qxf4 {[%clk 0:01:54.7]} 33. gxf4 {[%clk 0:00:25.4]}
33... Bg4 {[%clk 0:01:55.3]} 34. f3 {[%clk 0:00:15.6]} 34... Bxf3 {[%clk
0:01:55.2]} 35. Kf2 {[%clk 0:00:15.8]} 35... d2 {[%clk 0:01:55.9]} 36. Rg1
{[%clk 0:00:09.6]} 36... d1=Q {[%clk 0:01:55.7]} 37. Rxd1 {[%clk 0:00:05.1]}
37... Bxd1 {[%clk 0:01:56]} 0-1

[Event "Early-Titled-Tuesday-Blitz-February-13-2024"]
[Site "Chess.com"]
[Date "2024.02.13"]
[Round "3"]
[White "Kildepiotr"]
[Black "ccccvhhhj"]
[Result "1-0"]
[WhiteElo "2690"]
[BlackElo "2489"]
[TimeControl "180+1"]
[EndTime "8:30:33 PST"]
[Termination "Kildepiotr won on time"]

1. Nf3 {[%clk 0:02:57.5]} 1... Nc6 {[%clk 0:02:59.1]} 2. g3 {[%clk 0:02:57.6]}
2... d5 {[%clk 0:02:59.2]} 3. Bg2 {[%clk 0:02:57.4]} 3... Bf5 {[%clk 0:02:53.5]}
4. O-O {[%clk 0:02:57]} 4... Qd7 {[%clk 0:02:50.6]} 5. c4 {[%clk 0:02:57]} 5...
e6 {[%clk 0:02:47.6]} 6. cxd5 {[%clk 0:02:56.7]} 6... exd5 {[%clk 0:02:47.7]} 7.
d4 {[%clk 0:02:52.4]} 7... Nf6 {[%clk 0:02:40]} 8. Nc3 {[%clk 0:02:51.6]} 8...
O-O-O {[%clk 0:02:25.3]} 9. Bg5 {[%clk 0:02:50.1]} 9... Be7 {[%clk 0:02:21.4]}
10. Rc1 {[%clk 0:02:47.5]} 10... h6 {[%clk 0:02:12.8]} 11. Bf4 {[%clk
0:02:46.6]} 11... Ne4 {[%clk 0:01:37.9]} 12. Ne5 {[%clk 0:02:46.2]} 12... Nxc3
{[%clk 0:01:24.1]} 13. Rxc3 {[%clk 0:02:22.3]} 13... Nxe5 {[%clk 0:01:11.9]} 14.
Bxe5 {[%clk 0:02:23.2]} 14... Bd6 {[%clk 0:01:01.4]} 15. Bxg7 {[%clk 0:02:20.7]}
15... Rhg8 {[%clk 0:00:59.6]} 16. Bxh6 {[%clk 0:02:17]} 16... Bh3 {[%clk
0:00:56.3]} 17. Qd2 {[%clk 0:02:04.8]} 17... Bxg2 {[%clk 0:00:55.9]} 18. Kxg2
{[%clk 0:02:04.9]} 18... Qg4 {[%clk 0:00:51.2]} 19. Rf3 {[%clk 0:01:53.3]} 19...
Rg6 {[%clk 0:00:43.8]} 20. h4 {[%clk 0:01:39.4]} 20... f6 {[%clk 0:00:34.9]} 21.
Rh1 {[%clk 0:01:32.2]} 21... Rh8 {[%clk 0:00:34.2]} 22. Bf4 {[%clk 0:01:32]}
22... Qe6 {[%clk 0:00:12.8]} 23. Bxd6 {[%clk 0:01:30.6]} 23... Qxd6 {[%clk
0:00:13.7]} 24. Qf4 {[%clk 0:01:28.4]} 24... Qe6 {[%clk 0:00:04.9]} 25. Qf5
{[%clk 0:01:28.4]} 25... Kd7 {[%clk 0:00:04.4]} 26. Qxg6 {[%clk 0:01:27.5]}
26... Qxe2 {[%clk 0:00:04.2]} 27. Re3 {[%clk 0:01:26.5]} 1-0

[Event "Early-Titled-Tuesday-Blitz-February-13-2024"]
[Site "Chess.com"]
[Date "2024.02.13"]
[Round "3"]
[White "gmcorrales"]
[Black "DucksParadise"]
[Result "1/2-1/2"]
[WhiteElo "2827"]
[BlackElo "2522"]
[TimeControl "180+1"]
[EndTime "8:30:34 PST"]
[Termination "Game drawn by repetition"]

1. d4 {[%clk 0:03:00.9]} 1... e6 {[%clk 0:02:53.5]} 2. f4 {[%clk 0:02:59.6]}
2... c5 {[%clk 0:02:49.8]} 3. e3 {[%clk 0:02:59.1]} 3... f5 {[%clk 0:02:37]} 4.
Nf3 {[%clk 0:02:58.5]} 4... Nf6 {[%clk 0:02:37.6]} 5. c3 {[%clk 0:02:57.7]} 5...
d5 {[%clk 0:02:37.8]} 6. Bd3 {[%clk 0:02:57.7]} 6... Bd6 {[%clk 0:02:37.2]} 7.
h3 {[%clk 0:02:53.2]} 7... b6 {[%clk 0:02:34.3]} 8. Qe2 {[%clk 0:02:52.7]} 8...
a5 {[%clk 0:02:34.1]} 9. Nbd2 {[%clk 0:02:44.1]} 9... Ba6 {[%clk 0:02:33.5]} 10.
c4 {[%clk 0:02:44.2]} 10... Nc6 {[%clk 0:02:12.5]} 11. O-O {[%clk 0:02:34.2]}
11... O-O {[%clk 0:02:06.3]} 12. cxd5 {[%clk 0:02:29.6]} 12... Bxd3 {[%clk
0:02:07.1]} 13. Qxd3 {[%clk 0:02:30.2]} 13... Nxd5 {[%clk 0:02:01.5]} 14. Nc4
{[%clk 0:02:26.6]} 14... cxd4 {[%clk 0:01:57.2]} 15. Nxd6 {[%clk 0:02:06]} 15...
Qxd6 {[%clk 0:01:57]} 16. Nxd4 {[%clk 0:02:06.1]} 16... Nxd4 {[%clk 0:01:57.1]}
17. Qxd4 {[%clk 0:02:07]} 17... Rfd8 {[%clk 0:01:54.7]} 18. b3 {[%clk
0:01:58.1]} 18... Nb4 {[%clk 0:01:49.1]} 19. Bb2 {[%clk 0:01:55.2]} 19... Qxd4
{[%clk 0:01:44.2]} 20. Bxd4 {[%clk 0:01:56.1]} 20... Nc2 {[%clk 0:01:29.7]} 21.
Bxb6 {[%clk 0:01:56]} 21... Nxa1 {[%clk 0:01:30.1]} 22. Bxd8 {[%clk 0:01:55.6]}
22... Rxd8 {[%clk 0:01:31]} 23. Rxa1 {[%clk 0:01:55.7]} 23... Rd2 {[%clk
0:01:30.7]} 24. Kf1 {[%clk 0:01:47.1]} 24... Rb2 {[%clk 0:01:28.9]} 25. Kg1
{[%clk 0:01:26.1]} 25... h6 {[%clk 0:01:28.6]} 26. Kh2 {[%clk 0:01:26.4]} 26...
g5 {[%clk 0:01:27.7]} 27. Kg3 {[%clk 0:01:26.6]} 27... Kf7 {[%clk 0:01:25.9]}
28. Kf3 {[%clk 0:01:26.9]} 28... Kf6 {[%clk 0:01:25.6]} 29. g4 {[%clk
0:01:27.1]} 29... Rh2 {[%clk 0:01:21.2]} 30. Kg3 {[%clk 0:01:10.4]} 30... Re2
{[%clk 0:01:20]} 31. Kf3 {[%clk 0:00:57]} 31... Rh2 {[%clk 0:01:19.4]} 32. gxf5
{[%clk 0:00:36.6]} 32... exf5 {[%clk 0:01:12.6]} 33. Kg3 {[%clk 0:00:35.9]}
33... Re2 {[%clk 0:01:12.4]} 34. Kf3 {[%clk 0:00:36.1]} 34... Rh2 {[%clk
0:01:12.5]} 35. Kg3 {[%clk 0:00:30.6]} 35... Re2 {[%clk 0:01:12.2]} 36. Kf3
{[%clk 0:00:28.6]} 36... Rh2 {[%clk 0:01:12.3]} 1/2-1/2

[Event "Early-Titled-Tuesday-Blitz-February-13-2024"]
[Site "Chess.com"]
[Date "2024.02.13"]
[Round "3"]
[White "JonasEilenberg"]
[Black "Gryffindorac8"]
[Result "1-0"]
[WhiteElo "2589"]
[BlackElo "2390"]
[TimeControl "180+1"]
[EndTime "8:30:34 PST"]
[Termination "JonasEilenberg won by resignation"]

1. d4 {[%clk 0:03:00.9]} 1... Nf6 {[%clk 0:02:58.5]} 2. c4 {[%clk 0:03:01.6]}
2... c5 {[%clk 0:02:56.5]} 3. d5 {[%clk 0:03:01.7]} 3... b5 {[%clk 0:02:56.8]}
4. Qc2 {[%clk 0:03:02.2]} 4... b4 {[%clk 0:02:56]} 5. e4 {[%clk 0:03:02.6]} 5...
d6 {[%clk 0:02:56]} 6. a3 {[%clk 0:03:02.8]} 6... a5 {[%clk 0:02:55.3]} 7. Nf3
{[%clk 0:02:52.3]} 7... g6 {[%clk 0:02:53.8]} 8. axb4 {[%clk 0:02:51.3]} 8...
cxb4 {[%clk 0:02:53.4]} 9. Be3 {[%clk 0:02:52.2]} 9... Nbd7 {[%clk 0:02:47.6]}
10. c5 {[%clk 0:02:29.8]} 10... Nxc5 {[%clk 0:02:34.5]} 11. Bxc5 {[%clk
0:02:22.6]} 11... dxc5 {[%clk 0:02:34.2]} 12. Qxc5 {[%clk 0:02:18]} 12... Bg7
{[%clk 0:02:20.2]} 13. Bb5+ {[%clk 0:02:08.4]} 13... Bd7 {[%clk 0:02:17.5]} 14.
e5 {[%clk 0:02:08.1]} 14... Bxb5 {[%clk 0:01:46.9]} 15. exf6 {[%clk 0:02:07.7]}
15... Bxf6 {[%clk 0:01:28.1]} 16. Qxb5+ {[%clk 0:02:08.1]} 16... Kf8 {[%clk
0:01:27.7]} 17. O-O {[%clk 0:02:08.5]} 17... Bxb2 {[%clk 0:01:26]} 18. Ra2
{[%clk 0:02:08.6]} 18... Bf6 {[%clk 0:01:25.7]} 19. Nbd2 {[%clk 0:02:07]} 19...
Kg7 {[%clk 0:01:20.3]} 20. Ne4 {[%clk 0:02:06.2]} 20... Rb8 {[%clk 0:01:02.4]}
21. Qxa5 {[%clk 0:02:04.6]} 21... b3 {[%clk 0:01:01.8]} 22. Qxd8 {[%clk
0:01:49.5]} 22... Rhxd8 {[%clk 0:00:58.4]} 23. Rd2 {[%clk 0:01:47.9]} 23... b2
{[%clk 0:00:34.8]} 24. Rb1 {[%clk 0:01:46]} 24... Rb5 {[%clk 0:00:26.4]} 25.
Nxf6 {[%clk 0:01:43.8]} 25... Kxf6 {[%clk 0:00:25.7]} 26. Rdxb2 {[%clk
0:01:43.1]} 26... Rxb2 {[%clk 0:00:24.7]} 27. Rxb2 {[%clk 0:01:44]} 27... Rxd5
{[%clk 0:00:24.9]} 28. g3 {[%clk 0:01:44.7]} 28... e6 {[%clk 0:00:24.7]} 29. Kg2
{[%clk 0:01:45.2]} 29... h5 {[%clk 0:00:25.1]} 30. h4 {[%clk 0:01:45.7]} 30...
Kg7 {[%clk 0:00:24.9]} 31. Rb7 {[%clk 0:01:46.3]} 31... Rf5 {[%clk 0:00:23.3]}
32. Ng5 {[%clk 0:01:45.8]} 32... Kg8 {[%clk 0:00:22.6]} 33. Ne4 {[%clk
0:01:46.1]} 33... Kg7 {[%clk 0:00:20.8]} 34. Nd6 {[%clk 0:01:45.3]} 34... Rd5
{[%clk 0:00:18]} 35. Nxf7 {[%clk 0:01:44.3]} 35... Kg8 {[%clk 0:00:08.9]} 36.
Ng5 {[%clk 0:01:44.3]} 36... Re5 {[%clk 0:00:07.9]} 37. Re7 {[%clk 0:01:43.3]}
37... Re1 {[%clk 0:00:06.5]} 38. Rxe6 {[%clk 0:01:43.4]} 1-0

[Event "Early-Titled-Tuesday-Blitz-February-13-2024"]
[Site "Chess.com"]
[Date "2024.02.13"]
[Round "3"]
[White "PushingpawnsNYC"]
[Black "Alina_Gumerovna"]
[Result "1-0"]
[WhiteElo "2339"]
[BlackElo "2098"]
[TimeControl "180+1"]
[EndTime "8:30:35 PST"]
[Termination "PushingpawnsNYC won on time"]

1. e4 {[%clk 0:03:00.9]} 1... e5 {[%clk 0:02:59.7]} 2. Nf3 {[%clk 0:02:59]} 2...
Nf6 {[%clk 0:02:59.8]} 3. Nxe5 {[%clk 0:02:57.2]} 3... Nxe4 {[%clk 0:02:55.2]}
4. Qe2 {[%clk 0:02:50.3]} 4... Qe7 {[%clk 0:02:54.4]} 5. Qxe4 {[%clk 0:02:40.4]}
5... d6 {[%clk 0:02:53.5]} 6. d4 {[%clk 0:02:38.6]} 6... dxe5 {[%clk 0:02:52.6]}
7. dxe5 {[%clk 0:02:25.7]} 7... Nc6 {[%clk 0:02:16.1]} 8. Bb5 {[%clk 0:02:21.8]}
8... Bd7 {[%clk 0:02:11.3]} 9. f4 {[%clk 0:01:43]} 9... O-O-O {[%clk 0:01:22.2]}
10. Nc3 {[%clk 0:01:37.3]} 10... f6 {[%clk 0:00:07]} 11. Be3 {[%clk 0:01:17.1]}
11... fxe5 {[%clk 0:00:05.1]} 12. O-O-O {[%clk 0:01:09]} 12... exf4 {[%clk
0:00:03.5]} 13. Qxf4 {[%clk 0:01:07.6]} 13... Qf6 {[%clk 0:00:02.3]} 14. Qa4
{[%clk 0:00:54.8]} 1-0

[Event "Early-Titled-Tuesday-Blitz-February-13-2024"]
[Site "Chess.com"]
[Date "2024.02.13"]
[Round "3"]
[White "AttackSparrow"]
[Black "Schachmalanders"]
[Result "0-1"]
[WhiteElo "2611"]
[BlackElo "2454"]
[TimeControl "180+1"]
[EndTime "8:30:38 PST"]
[Termination "Schachmalanders won on time"]

1. Nf3 {[%clk 0:03:00.9]} 1... c5 {[%clk 0:02:56.3]} 2. e3 {[%clk 0:03:01]} 2...
Nf6 {[%clk 0:02:54.1]} 3. d4 {[%clk 0:03:01.9]} 3... d5 {[%clk 0:02:54]} 4. a3
{[%clk 0:02:53.4]} 4... cxd4 {[%clk 0:02:52.4]} 5. exd4 {[%clk 0:02:54.3]} 5...
Nc6 {[%clk 0:02:52.1]} 6. Bb5 {[%clk 0:02:53.1]} 6... a6 {[%clk 0:02:51.1]} 7.
Bxc6+ {[%clk 0:02:51.4]} 7... bxc6 {[%clk 0:02:51.5]} 8. O-O {[%clk 0:02:49.8]}
8... e6 {[%clk 0:02:51.6]} 9. Bf4 {[%clk 0:02:34.7]} 9... Be7 {[%clk 0:02:48.3]}
10. Nbd2 {[%clk 0:02:30.8]} 10... O-O {[%clk 0:02:48.3]} 11. Re1 {[%clk
0:02:25.9]} 11... a5 {[%clk 0:02:46.9]} 12. c4 {[%clk 0:02:22.1]} 12... c5
{[%clk 0:02:41.6]} 13. Rc1 {[%clk 0:01:58.3]} 13... cxd4 {[%clk 0:02:36.4]} 14.
Nxd4 {[%clk 0:01:54.8]} 14... Qb6 {[%clk 0:02:27]} 15. Be3 {[%clk 0:00:18.1]}
15... Qxb2 {[%clk 0:02:15.9]} 16. Rb1 {[%clk 0:00:09.9]} 16... Qxa3 {[%clk
0:02:14.7]} 17. Nb5 {[%clk 0:00:09.9]} 17... Qd3 {[%clk 0:02:10.9]} 18. Rb3
{[%clk 0:00:09.2]} 18... Qf5 {[%clk 0:02:02.1]} 19. Bd4 {[%clk 0:00:09.6]} 19...
dxc4 {[%clk 0:01:54.6]} 20. Nxc4 {[%clk 0:00:10]} 20... Qd5 {[%clk 0:01:43]} 21.
Nc7 {[%clk 0:00:08.3]} 21... Qxc4 {[%clk 0:01:41.6]} 22. Nxa8 {[%clk 0:00:07]}
22... a4 {[%clk 0:01:37.5]} 23. Rc3 {[%clk 0:00:06.8]} 23... Qd5 {[%clk
0:01:36.2]} 24. Nc7 {[%clk 0:00:07.5]} 24... Qa5 {[%clk 0:01:31.1]} 25. Re5
{[%clk 0:00:03.1]} 25... Qb4 {[%clk 0:01:19.5]} 26. Rb5 {[%clk 0:00:03.7]} 26...
Qd6 {[%clk 0:01:16.2]} 0-1

[Event "Early-Titled-Tuesday-Blitz-February-13-2024"]
[Site "Chess.com"]
[Date "2024.02.13"]
[Round "3"]
[White "GameOverBro"]
[Black "remyrushbrooke"]
[Result "0-1"]
[WhiteElo "2540"]
[BlackElo "2272"]
[TimeControl "180+1"]
[EndTime "8:30:41 PST"]
[Termination "remyrushbrooke won on time"]

1. e4 {[%clk 0:03:00]} 1... e5 {[%clk 0:02:59.6]} 2. Nf3 {[%clk 0:03:00.1]} 2...
Nf6 {[%clk 0:02:59.7]} 3. d4 {[%clk 0:02:59.9]} 3... Nxe4 {[%clk 0:02:59.1]} 4.
Bd3 {[%clk 0:03:00.5]} 4... d5 {[%clk 0:02:57.6]} 5. Nxe5 {[%clk 0:03:00.9]}
5... Nd7 {[%clk 0:02:56.8]} 6. Nxd7 {[%clk 0:02:59]} 6... Bxd7 {[%clk
0:02:57.7]} 7. Nc3 {[%clk 0:02:57.8]} 7... Nxc3 {[%clk 0:02:57]} 8. bxc3 {[%clk
0:02:58.7]} 8... Bd6 {[%clk 0:02:56.7]} 9. O-O {[%clk 0:02:58.9]} 9... O-O
{[%clk 0:02:56.6]} 10. Qh5 {[%clk 0:02:59.6]} 10... f5 {[%clk 0:02:52.6]} 11.
Qf3 {[%clk 0:03:00.2]} 11... Kh8 {[%clk 0:02:47.7]} 12. Qxd5 {[%clk 0:02:49.9]}
12... Bc6 {[%clk 0:02:47.4]} 13. Qb3 {[%clk 0:02:39.4]} 13... Bxh2+ {[%clk
0:02:42]} 14. Kxh2 {[%clk 0:02:32]} 14... Qh4+ {[%clk 0:02:42.4]} 15. Kg1 {[%clk
0:02:32.2]} 15... Bxg2 {[%clk 0:02:42.3]} 16. f3 {[%clk 0:01:21.5]} 16... Bxf1
{[%clk 0:02:10.8]} 17. Kxf1 {[%clk 0:00:47.7]} 17... Rae8 {[%clk 0:01:44.3]} 18.
Ba3 {[%clk 0:00:34.3]} 18... Qh1+ {[%clk 0:01:25.3]} 19. Kf2 {[%clk 0:00:34.7]}
19... Qh2+ {[%clk 0:01:24.9]} 20. Kf1 {[%clk 0:00:34.5]} 20... Rf6 {[%clk
0:00:58.8]} 0-1

[Event "Early-Titled-Tuesday-Blitz-February-13-2024"]
[Site "Chess.com"]
[Date "2024.02.13"]
[Round "3"]
[White "Brahianzevich"]
[Black "lacafi"]
[Result "1-0"]
[WhiteElo "2427"]
[BlackElo "2204"]
[TimeControl "180+1"]
[EndTime "8:30:42 PST"]
[Termination "Brahianzevich won by checkmate"]

1. e4 {[%clk 0:03:00]} 1... c6 {[%clk 0:03:00]} 2. d4 {[%clk 0:03:00]} 2... d5
{[%clk 0:03:00.9]} 3. Nc3 {[%clk 0:03:00.4]} 3... dxe4 {[%clk 0:03:01.8]} 4.
Nxe4 {[%clk 0:03:01.2]} 4... Nf6 {[%clk 0:03:02.1]} 5. Nxf6+ {[%clk 0:03:01.5]}
5... exf6 {[%clk 0:03:03]} 6. c3 {[%clk 0:03:02.1]} 6... Bd6 {[%clk 0:03:03.6]}
7. Bd3 {[%clk 0:03:02.6]} 7... O-O {[%clk 0:03:04.3]} 8. Qc2 {[%clk 0:03:03.2]}
8... Re8+ {[%clk 0:03:04.8]} 9. Ne2 {[%clk 0:03:03.5]} 9... h5 {[%clk
0:03:05.4]} 10. Be3 {[%clk 0:03:03.6]} 10... Nd7 {[%clk 0:03:06]} 11. O-O-O
{[%clk 0:03:04.2]} 11... Nf8 {[%clk 0:03:06.7]} 12. Kb1 {[%clk 0:03:02.3]} 12...
Qc7 {[%clk 0:03:06.7]} 13. Ng3 {[%clk 0:02:59.3]} 13... g6 {[%clk 0:02:39.1]}
14. Rde1 {[%clk 0:02:51.9]} 14... Bd7 {[%clk 0:02:34.5]} 15. Ne4 {[%clk
0:02:46.9]} 15... Be7 {[%clk 0:02:23.5]} 16. Qd2 {[%clk 0:02:44.5]} 16... f5
{[%clk 0:02:22.3]} 17. Bf4 {[%clk 0:02:43.1]} 17... Qa5 {[%clk 0:02:16]} 18. Ng5
{[%clk 0:02:30.1]} 18... Ne6 {[%clk 0:02:10.7]} 19. Nxe6 {[%clk 0:01:41.3]}
19... Bxe6 {[%clk 0:02:10.5]} 20. b3 {[%clk 0:01:40.8]} 20... c5 {[%clk
0:02:02.6]} 21. Be5 {[%clk 0:01:35.3]} 21... Bf8 {[%clk 0:01:50.5]} 22. g4
{[%clk 0:01:23.1]} 22... fxg4 {[%clk 0:01:41.4]} 23. d5 {[%clk 0:01:08.6]} 23...
Bd7 {[%clk 0:00:27.2]} 24. Qg5 {[%clk 0:00:46.3]} 24... Kh7 {[%clk 0:00:26.5]}
25. Qxh5+ {[%clk 0:00:45.7]} 25... Kg8 {[%clk 0:00:25.3]} 26. Qh8# {[%clk
0:00:45.5]} 1-0